Cogmind - Beta 9.6 @@@ ROGUE MODE // 2020.07.31 @ 22:26:28 Player: Alexbot Result: Self-destructed Performance ------------- Evolutions (4) 2000 Regions Visited (13) 2600 Robots Destroyed (16) 80 Value Destroyed (327) 327 Prototype IDs (0) 0 Alien Tech Used (0) 0 Bonus (2000) 2000 TOTAL SCORE: 7007 Bonus ------- Pacifist 200 Entered Garrisons 800 Used RIF Installer 1000 Cogmind --------- Core Integrity 291/850 Matter 198/300 Energy 100/100 System Corruption 0% Temperature Cool (0) Movement Core (50) Location -6/Lower Caves Parts ------- > --- POWER (3) -------- (None) > --- PROPULSION (6) --- (None) > --- UTILITY (4) ------ Improved Signal Interpreter Improved Terrain Scan Processor Hacking Suite > --- WEAPON (2) ------- (None) > --- INVENTORY (4) ---- Improved Deuterium Engine Medium Storage Unit Improved Propulsion Shielding Improved Propulsion Shielding Peak State ------------ > --- POWER ------------ Improved Deuterium Engine > --- PROPULSION ------- Flight Unit Flight Unit VTOL Module VTOL Module Xenon Bombardment Thruster > --- UTILITY ---------- Improved Terrain Scan Processor Improved Propulsion Shielding Improved Propulsion Shielding Hacking Suite > --- WEAPON ----------- Flak Cannon > --- INVENTORY -------- Improved Deuterium Engine Medium Storage Unit Rocket Launcher [Rating: 29] Favorites ----------- Power Light Ion Engine Engine Light Ion Engine Propulsion Flight Unit Leg Aluminum Leg Flight Unit Flight Unit Utility Improved Propulsion Shielding Processor Improved Terrain Scan Processor Hackware Hacking Suite Protection Improved Propulsion Shielding Weapon Flak Cannon Energy Gun EM Pulse Gun Ballistic Cannon Flak Cannon Launcher Rocket Launcher Build | -11 -10 -9 -8 -8 -7 -7 -7 -7 -7 -6 -6 -6 -6 ------- Run | Scr Mat Mat Mat Gar Fac Gar Fac Gar Fac Fac Gar Fac Low Slots Evolved 8 | . . 2 2 . 2 . . . . 2 . . . Power 2 | . . 1 . . . . . . . 1 . . . Propulsion 4 | . . 1 1 . 1 . . . . 1 . . . Utility 2 | . . . 1 . 1 . . . . . . . . Weapon . | . . . . . . . . . . . . . . Parts Attached 28 | . . 2 . 9 5 . . 5 6 1 . . . Power 6 | . . 1 . 2 1 . . 1 1 . . . . Engine 6 | . . 1 . 2 1 . . 1 1 . . . . Core . | . . . . . . . . . . . . . . Reactor . | . . . . . . . . . . . . . . Propulsion 11 | . . . . 6 1 . . 3 1 . . . . Treads . | . . . . . . . . . . . . . . Leg . | . . . . . . . . . . . . . . Wheel . | . . . . . . . . . . . . . . Hover . | . . . . . . . . . . . . . . Flight 11 | . . . . 6 1 . . 3 1 . . . . Utility 5 | . . . . . 2 . . . 2 1 . . . Device . | . . . . . . . . . . . . . . Storage . | . . . . . . . . . . . . . . Processor 2 | . . . . . . . . . 1 1 . . . Hackware 1 | . . . . . . . . . 1 . . . . Protection 2 | . . . . . 2 . . . . . . . . Artifact . | . . . . . . . . . . . . . . Weapon 6 | . . 1 . 1 1 . . 1 2 . . . . Energy Gun 1 | . . 1 . . . . . . . . . . . Energy Cannon . | . . . . . . . . . . . . . . Ballistic Gun . | . . . . . . . . . . . . . . Ballistic Cannon 3 | . . . . 1 . . . 1 1 . . . . Launcher 2 | . . . . . 1 . . . 1 . . . . Special Weapon . | . . . . . . . . . . . . . . Impact Weapon . | . . . . . . . . . . . . . . Slashing Weapon . | . . . . . . . . . . . . . . Piercing Weapon . | . . . . . . . . . . . . . . Special Melee Weapon . | . . . . . . . . . . . . . . Unidentified Prototypes . | . . . . . . . . . . . . . . Parts Lost 15 | . . 2 . 2 . . . 3 7 1 . . . Power 2 | . . . . 1 . . . . 1 . . . . Propulsion 9 | . . . . 1 . . . 3 4 1 . . . Utility . | . . . . . . . . . . . . . . Weapon 4 | . . 2 . . . . . . 2 . . . . Highest Loss Streak 8 | . . 2 . 1 . . . 3 7 8 . . . Average Slot Usage (%) 40 | . 14 17 9 27 63 76 76 66 65 19 20 20 . Engine 8 | . . 7 9 8 15 15 15 11 11 . . . . Flight 16 | . . . . 13 38 38 38 32 27 2 . . . Processor 3 | . . . . . . . . . 5 9 13 13 . Hackware 1 | . . . . . . . . . 3 6 6 6 . Protection 4 | . . . . . 2 15 15 15 12 . . . . Energy Gun 1 | . 14 9 . . . . . . . . . . . Ballistic Cannon 1 | . . . . 4 4 . . 1 1 . . . . Launcher 1 | . . . . . 3 7 7 3 . . . . . Naked Turns 31 | . . . . 31 . . . . . . . . . Heaviest Build 20 | 11 2 7 3 12 16 16 16 16 20 . . . . Greatest Support 25 | 20 3 3 3 16 20 20 20 23 25 5 3 3 . Greatest Overweight (x) 2 | . . 2 . 1 . . . . 1 . . . . Average Overweight (x) . | . . . . . . . . . . . . . . Largest Inventory Capacity 4 | . 4 4 4 4 4 4 4 4 4 4 4 4 . Average Capacity 4 | . 4 4 4 4 4 4 4 4 4 4 4 4 . Most Carried 4 | . 4 4 4 4 4 4 4 4 4 4 4 4 . Average Carried 3 | . 3 3 3 3 3 4 4 3 3 4 4 4 . Final Capacity 6 | 6 4 4 4 4 4 4 4 4 4 4 4 4 4 Final Carried 6 | 6 4 3 4 4 4 4 4 3 4 4 4 4 4 Class Distribution -------------------- 55% | Mutant 44% | Scavenger-Sprinter Dominant Class ---------------- Mutant | -10/Materials Mutant | -9/Materials Mutant | -8/Materials Scavenger-Sprinter | -8/Garrison Scavenger-Sprinter | -7/Factory Scavenger-Sprinter | -7/Garrison Scavenger-Sprinter | -7/Factory Scavenger-Sprinter | -7/Garrison Scavenger-Sprinter | -7/Factory Mutant | -6/Factory Mutant | -6/Garrison Mutant | -6/Factory Mutant | -6/Lower Caves Resources | -11 -10 -9 -8 -8 -7 -7 -7 -7 -7 -6 -6 -6 -6 ----------- Run | Scr Mat Mat Mat Gar Fac Gar Fac Gar Fac Fac Gar Fac Low Matter Collected 495 | 196 . 24 . 125 . . 105 19 26 . . . . Remotely . | . . . . . . . . . . . . . . Salvage Created 253 | . . 60 . 117 . . . 50 26 . . . . Parts 23 | . . 8 . 10 . . . 4 1 . . . . Haulers Intercepted . | . . . . . . . . . . . . . . Recyclers Shooed . | . . . . . . . . . . . . . . Parts Field Recycled . | . . . . . . . . . . . . . . Retrieved Matter . | . . . . . . . . . . . . . . Parts Self-Destructed . | . . . . . . . . . . . . . . Prevented . | . . . . . . . . . . . . . . Kills | -11 -10 -9 -8 -8 -7 -7 -7 -7 -7 -6 -6 -6 -6 ------- Run | Scr Mat Mat Mat Gar Fac Gar Fac Gar Fac Fac Gar Fac Low Combat Hostiles Destroyed 16 | . . 4 . 7 . . . 3 2 . . . . Guns 4 | . . 4 . . . . . . . . . . . Cannons 9 | . . . . 7 . . . 1 1 . . . . AOE 3 | . . . . . . . . 2 1 . . . . Classes Destroyed 2 | . . 1 . 1 . . . . . . . . . Swarmer 14 | . . 4 . 5 . . . 3 2 . . . . Brawler 2 | . . . . 2 . . . . . . . . . Best Kill Streak 4 | . . 4 . 4 . . . 3 2 . . . . Combat Bots Only 4 | . . 4 . 4 . . . 3 2 . . . . Max Kills in Single Turn 2 | . . 1 . 1 . . . 2 1 . . . . Gunslinging . | . . . . . . . . . . . . . . Exploded 2 | . . . . . . . . 2 1 . . . . Melee . | . . . . . . . . . . . . . . Uniques/NPCs Destroyed . | . . . . . . . . . . . . . . Combat | -11 -10 -9 -8 -8 -7 -7 -7 -7 -7 -6 -6 -6 -6 -------- Run | Scr Mat Mat Mat Gar Fac Gar Fac Gar Fac Fac Gar Fac Low Damage Taken 2055 | . . 176 87 396 36 53 43 314 378 161 411 . . Core 1147 | . . 65 69 255 . 19 . 51 129 148 411 . . Absorbed by Shields 151 | . . . . 35 . . . 93 . . 23 . . Core Remaining (%) 79 | 100 100 83 . 41 . . . . 71 . . . . Volleys Fired 35 | . . 8 . 14 1 . . 3 9 . . . . Largest 2 | . . 2 . 1 1 . . 1 1 . . . . Hottest 80 | . . 80 . 44 33 . . 44 44 . . . . Shots Fired 39 | . . 12 . 14 1 . . 3 9 . . . . Gun 12 | . . 12 . . . . . . . . . . . Cannon 23 | . . . . 14 . . . 1 8 . . . . Launcher 4 | . . . . . 1 . . 2 1 . . . . Special . | . . . . . . . . . . . . . . Kinetic 23 | . . . . 14 . . . 1 8 . . . . Thermal . | . . . . . . . . . . . . . . Explosive 4 | . . . . . 1 . . 2 1 . . . . Electromagnetic 12 | . . 12 . . . . . . . . . . . Robot Hit Streak 8 | . . 6 . 8 . . . 1 2 . . . . Robot Miss Streak 6 | . . 3 . 4 . . . 4 6 . . . . Penetration Max . | . . . . . . . . . . . . . . Secondary Targets . | . . . . . . . . . . . . . . Shots Hit Robots 31 | . . 6 . 14 . . . 2 9 . . . . Core Hits 34 | . . 5 . 17 . . . 6 6 . . . . Critical Hits . | . . . . . . . . . . . . . . Critical Kills . | . . . . . . . . . . . . . . Critical Parts Destroyed . | . . . . . . . . . . . . . . Melee Attacks . | . . . . . . . . . . . . . . Impact . | . . . . . . . . . . . . . . Slashing . | . . . . . . . . . . . . . . Piercing . | . . . . . . . . . . . . . . Sneak Attacks . | . . . . . . . . . . . . . . Combat Hostiles . | . . . . . . . . . . . . . . Follow-up Attacks . | . . . . . . . . . . . . . . Damage Inflicted 590 | . . 87 . 240 . . . 119 141 3 . . . Guns 67 | . . 67 . . . . . . . . . . . Cannons 312 | . . . . 240 . . . 14 58 . . . . Explosions 188 | . . . . . . . . 105 83 . . . . Melee . | . . . . . . . . . . . . . . Ramming 23 | . . 20 . . . . . . . 3 . . . Kinetic 312 | . . . . 240 . . . 14 58 . . . . Thermal . | . . . . . . . . . . . . . . Explosive 188 | . . . . . . . . 105 83 . . . . Electromagnetic 67 | . . 67 . . . . . . . . . . . Impact . | . . . . . . . . . . . . . . Slashing . | . . . . . . . . . . . . . . Piercing . | . . . . . . . . . . . . . . Highest Corruption 1 | . . . . . . . 1 1 1 . . . . Average Corruption 1 | . . . . . . . 1 1 1 . . . . Corruption Purged . | . . . . . . . . . . . . . . Effects 1 | . . . . . . . . . 1 . . . . Targeting Errors 1 | . . . . . . . . . 1 . . . . Overload Shots . | . . . . . . . . . . . . . . Overflow Damage 9 | . . . . . . . . . 9 . . . . Projectiles . | . . . . . . . . . . . . . . Explosions 9 | . . . . . . . . . 9 . . . . Melee . | . . . . . . . . . . . . . . Knockbacks 4 | . . . . 4 . . . . . . . . . Impact . | . . . . . . . . . . . . . . Kinetic 3 | . . . . 3 . . . . . . . . . Secondary 1 | . . . . 1 . . . . . . . . . Self-Inflicted Damage 86 | . . 9 . . 36 . . . 40 1 . . . Shots 2 | . . . . . 1 . . . 1 . . . . Rammed 7 | . . 6 . . . . . . . 1 . . . Targets Rammed 7 | . . 6 . . . . . . . 1 . . . Kicked . | . . . . . . . . . . . . . . Crushed . | . . . . . . . . . . . . . . Highest Temperature 34 | . . . . 34 . 30 4 8 10 . . . . Average Temperature 9 | . . . . 16 . 15 2 4 6 . . . . Received Heat Transfer 381 | . . 24 54 . . 27 . 18 99 42 117 . . Siege Activations . | . . . . . . . . . . . . . . Robots Corrupted . | . . . . . . . . . . . . . . Combat Hostiles . | . . . . . . . . . . . . . . Parts Fried . | . . . . . . . . . . . . . . Impact Corruptions . | . . . . . . . . . . . . . . Robots Melted . | . . . . . . . . . . . . . . Combat Hostiles . | . . . . . . . . . . . . . . Parts Melted . | . . . . . . . . . . . . . . Heat Transferred . | . . . . . . . . . . . . . . Parts Sabotaged . | . . . . . . . . . . . . . . Parts Stolen . | . . . . . . . . . . . . . . Parts Stripped . | . . . . . . . . . . . . . . Power Chain Reactions . | . . . . . . . . . . . . . . Missiles Intercepted . | . . . . . . . . . . . . . . Alert | -11 -10 -9 -8 -8 -7 -7 -7 -7 -7 -6 -6 -6 -6 ------- Run | Scr Mat Mat Mat Gar Fac Gar Fac Gar Fac Fac Gar Fac Low Peak Influence 166 | . . 124 52 166 127 88 46 125 101 39 102 53 . Average Influence 69 | . . 74 52 81 107 88 46 79 76 37 66 53 . Maximum Alert Level . | . . . . . . . . . . . . . . Low Security (%) 100 | . 100 100 100 100 100 100 100 100 100 100 100 100 . Level 1 . | . . . . . . . . . . . . . . Level 2 . | . . . . . . . . . . . . . . Level 3 . | . . . . . . . . . . . . . . Level 4 . | . . . . . . . . . . . . . . Level 5 . | . . . . . . . . . . . . . . High Security . | . . . . . . . . . . . . . . Max Security . | . . . . . . . . . . . . . . Squads Dispatched 4 | . . . 1 . 1 . . . 1 . . 1 . Investigation 2 | . . . 1 . 1 . . . . . . . . Extermination . | . . . . . . . . . . . . . . Reinforcement 2 | . . . . . . . . . 1 . . 1 . Assault . | . . . . . . . . . . . . . . Garrison . | . . . . . . . . . . . . . . Intercept . | . . . . . . . . . . . . . . Construction Impeded . | . . . . . . . . . . . . . . Haulers Reinforced . | . . . . . . . . . . . . . . Stealth | -11 -10 -9 -8 -8 -7 -7 -7 -7 -7 -6 -6 -6 -6 --------- Run | Scr Mat Mat Mat Gar Fac Gar Fac Gar Fac Fac Gar Fac Low Distress Signals 3 | . . 1 . . . . . . 2 . . . . Communications Jammed . | . . . . . . . . . . . . . . Distress Signals . | . . . . . . . . . . . . . . Times Spotted 64 | . . 12 2 13 3 4 1 5 14 1 8 1 . Peak Tracking Total 10 | . . 6 2 6 3 4 1 5 9 1 10 . . Tactical Retreats 7 | . . 2 . 2 1 . . 1 1 . . . . Traps | -11 -10 -9 -8 -8 -7 -7 -7 -7 -7 -6 -6 -6 -6 ------- Run | Scr Mat Mat Mat Gar Fac Gar Fac Gar Fac Fac Gar Fac Low Traps Triggered 10 | . . . . 2 . . 1 6 . 1 . . . Indirectly . | . . . . . . . . . . . . . . Trap Hack Attempts . | . . . . . . . . . . . . . . Triggered . | . . . . . . . . . . . . . . Disarmed . | . . . . . . . . . . . . . . Reprogrammed . | . . . . . . . . . . . . . . Reused . | . . . . . . . . . . . . . . Traps Extracted . | . . . . . . . . . . . . . . Installed . | . . . . . . . . . . . . . . Triggered . | . . . . . . . . . . . . . . Machines | -11 -10 -9 -8 -8 -7 -7 -7 -7 -7 -6 -6 -6 -6 ---------- Run | Scr Mat Mat Mat Gar Fac Gar Fac Gar Fac Fac Gar Fac Low Machines Disabled 3 | . . 1 . . 2 . . . . . . . . Max in Single Turn 2 | . . 1 . . 2 . . . . . . . . Machines Sabotaged . | . . . . . . . . . . . . . . Garrisons Compromised . | . . . . . . . . . . . . . . Overloaded Fab Kills . | . . . . . . . . . . . . . . Fab Network Shutdowns . | . . . . . . . . . . . . . . Hacking | -11 -10 -9 -8 -8 -7 -7 -7 -7 -7 -6 -6 -6 -6 --------- Run | Scr Mat Mat Mat Gar Fac Gar Fac Gar Fac Fac Gar Fac Low Machines Accessed 7 | . . 1 2 . 2 . 1 . . 1 . . . Terminals 3 | . . 1 1 . 1 . . . . . . . . Fabricators . | . . . . . . . . . . . . . . Repair Stations . | . . . . . . . . . . . . . . Recycling Units . | . . . . . . . . . . . . . . Scanalyzers . | . . . . . . . . . . . . . . Garrison Access 4 | . . . 1 . 1 . 1 . . 1 . . . Total Hacks 13 | . . 2 3 . 6 . 1 . . 1 . . . Successful 6 | . . 1 1 . 2 . 1 . . 1 . . . Failed 7 | . . 1 2 . 4 . . . . . . . . Catastrophic 1 | . . . . . 1 . . . . . . . . Database Lockouts . | . . . . . . . . . . . . . . Manual 9 | . . 2 2 . 5 . . . . . . . . Terminals 9 | . . 2 2 . 5 . . . . . . . . Fabricators . | . . . . . . . . . . . . . . Repair Stations . | . . . . . . . . . . . . . . Recycling Units . | . . . . . . . . . . . . . . Scanalyzers . | . . . . . . . . . . . . . . Garrison Access 4 | . . . 1 . 1 . 1 . . 1 . . . Terminal Hacks 1 | . . 1 . . . . . . . . . . . Level Access Points 1 | . . 1 . . . . . . . . . . . Fabricator Hacks . | . . . . . . . . . . . . . . Repair Station Hacks . | . . . . . . . . . . . . . . Recycling Unit Hacks . | . . . . . . . . . . . . . . Scanalyzer . | . . . . . . . . . . . . . . Garrison Access Hacks 4 | . . . 1 . 1 . 1 . . 1 . . . Unlock Access 4 | . . . 1 . 1 . 1 . . 1 . . . Unauthorized Hacks 1 | . . . . . 1 . . . . . . . . Terminals 1 | . . . . . 1 . . . . . . . . Botnet 1 | . . . . . 1 . . . . . . . . Fabricators . | . . . . . . . . . . . . . . Repair Stations . | . . . . . . . . . . . . . . Recycling Units . | . . . . . . . . . . . . . . Scanalyzers . | . . . . . . . . . . . . . . Garrison Access . | . . . . . . . . . . . . . . Data Cores Recovered . | . . . . . . . . . . . . . . Used . | . . . . . . . . . . . . . . Hacking Detections 6 | . . 1 1 . 2 . 1 . . 1 . . . Full Trace Events 2 | . . . 1 . 1 . . . . . . . . Feedback Events . | . . . . . . . . . . . . . . Feedback Blocked . | . . . . . . . . . . . . . . Robot Schematics Acquired . | . . . . . . . . . . . . . . Robots Built . | . . . . . . . . . . . . . . Matter . | . . . . . . . . . . . . . . Time . | . . . . . . . . . . . . . . Total Robot Build Rating . | . . . . . . . . . . . . . . Part Schematics Acquired . | . . . . . . . . . . . . . . Parts Built . | . . . . . . . . . . . . . . Matter . | . . . . . . . . . . . . . . Time . | . . . . . . . . . . . . . . Total Part Build Rating . | . . . . . . . . . . . . . . Parts Repaired . | . . . . . . . . . . . . . . Time . | . . . . . . . . . . . . . . Parts Recycled . | . . . . . . . . . . . . . . Recycled Matter . | . . . . . . . . . . . . . . Retrieved Matter . | . . . . . . . . . . . . . . Retrieved Components . | . . . . . . . . . . . . . . Parts Scanalyzed . | . . . . . . . . . . . . . . Part Schematics Acquired . | . . . . . . . . . . . . . . Parts Damaged . | . . . . . . . . . . . . . . Bothacking | -11 -10 -9 -8 -8 -7 -7 -7 -7 -7 -6 -6 -6 -6 ------------ Run | Scr Mat Mat Mat Gar Fac Gar Fac Gar Fac Fac Gar Fac Low Used RIF Installer 2 | . . . . 1 . . . 1 . . . . . Structural Interface 1 | . . . . . . . . 1 . . . . . Robots Hacked . | . . . . . . . . . . . . . . Non-combat . | . . . . . . . . . . . . . . Combat . | . . . . . . . . . . . . . . Robot Hacks Applied . | . . . . . . . . . . . . . . Relay Couplers Released . | . . . . . . . . . . . . . . Robots Rewired . | . . . . . . . . . . . . . . Allies Hacked . | . . . . . . . . . . . . . . Hacks Repelled . | . . . . . . . . . . . . . . Allies | -11 -10 -9 -8 -8 -7 -7 -7 -7 -7 -6 -6 -6 -6 -------- Run | Scr Mat Mat Mat Gar Fac Gar Fac Gar Fac Fac Gar Fac Low Total Allies . | . . . . . . . . . . . . . . Largest Group . | . . . . . . . . . . . . . . Highest-Rated Group . | . . . . . . . . . . . . . . Highest-Rated Ally . | . . . . . . . . . . . . . . Total Orders . | . . . . . . . . . . . . . . Ally Attacks . | . . . . . . . . . . . . . . Total Damage . | . . . . . . . . . . . . . . Kills . | . . . . . . . . . . . . . . Allies Corrupted . | . . . . . . . . . . . . . . Allies Melted . | . . . . . . . . . . . . . . Intel | -11 -10 -9 -8 -8 -7 -7 -7 -7 -7 -6 -6 -6 -6 ------- Run | Scr Mat Mat Mat Gar Fac Gar Fac Gar Fac Fac Gar Fac Low Robot Analysis Total . | . . . . . . . . . . . . . . Derelict Logs Recovered . | . . . . . . . . . . . . . . Drone Launches . | . . . . . . . . . . . . . . Drone Recoveries . | . . . . . . . . . . . . . . Exploration | -11 -10 -9 -8 -8 -7 -7 -7 -7 -7 -6 -6 -6 -6 ------------- Run | Scr Mat Mat Mat Gar Fac Gar Fac Gar Fac Fac Gar Fac Low Turns Passed 824 | . 42 94 15 154 69 21 35 97 131 88 55 23 . Spaces Moved 1496 | 1 75 111 26 197 186 73 113 104 303 152 110 45 . Core 548 | . 75 111 26 86 . . . . . 95 110 45 . Treads . | . . . . . . . . . . . . . . Legs 1 | 1 . . . . . . . . . . . . . Wheels . | . . . . . . . . . . . . . . Hover . | . . . . . . . . . . . . . . Flight 947 | . . . . 111 186 73 113 104 303 57 . . . Fastest Speed 28 | 120 50 50 50 31 28 28 28 28 28 40 50 50 . Average Speed 38 | 120 50 54 50 42 30 28 28 29 32 46 50 50 . Slowest Speed 150 | 120 50 150 50 120 31 28 28 34 117 50 50 50 . Overloaded Moves . | . . . . . . . . . . . . . . Propulsion Burnouts . | . . . . . . . . . . . . . . Robots Hopped 3 | . . . . . . 1 . . 2 . . . . Cave-ins Triggered . | . . . . . . . . . . . . . . Exploration Rate (%) 14 | 1 20 16 7 35 8 38 4 31 14 4 29 1 1 Regions Visited 13 Branch Regions 1 Pre-discovered Areas . | . . . . . . . . . . . . . . Known Exits Taken 5 | . . 1 1 . 1 . 1 . . 1 . . . Unknown Exits Taken 4 | 1 1 . . . . . . . 1 . . 1 . Scrap Searched . | . . . . . . . . . . . . . . Spaces Dug . | . . . . . . . . . . . . . . Terrain Destroyed 36 | . . . . . 6 . . 16 14 . . . . Melee . | . . . . . . . . . . . . . . Projectile . | . . . . . . . . . . . . . . AOE 36 | . . . . . 6 . . 16 14 . . . . Actions | -11 -10 -9 -8 -8 -7 -7 -7 -7 -7 -6 -6 -6 -6 --------- Run | Scr Mat Mat Mat Gar Fac Gar Fac Gar Fac Fac Gar Fac Low Total 1682 | . 82 131 27 249 194 71 116 167 323 169 109 44 . Wait 17 | . . 4 . 6 . . 1 3 3 . . . . Move 1481 | . 74 110 26 195 186 70 113 103 299 152 109 44 . Hop 2 | . . . . . . 1 . . 1 . . . . Pick Up 7 | . 1 1 1 1 1 . 1 . 1 . . . . Fast Attach 15 | . . . . 6 3 . . 1 4 1 . . . Attach 9 | . . 2 . 2 1 . . 2 2 . . . . Detach 5 | . 1 . . . . . . 2 2 . . . . Swap 4 | . . . . 1 1 . . 2 . . . . . Drop 11 | . 6 . . . 1 . 1 1 2 . . . . Fire 35 | . . 8 . 14 1 . . 3 9 . . . . Melee . | . . . . . . . . . . . . . . Ram 7 | . . 6 . . . . . . . 1 . . . Kick . | . . . . . . . . . . . . . . Crush . | . . . . . . . . . . . . . . Escape Stasis 89 | . . . . 24 . . . 50 . 15 . . . Rewire . | . . . . . . . . . . . . . . Trap . | . . . . . . . . . . . . . . Miscellaneous . | . . . . . . . . . . . . . . Route ------- -11/Scrapyard -10/Materials -9/Materials (discovered 3 exits: *Mat x3) -8/Materials -8/Garrison (discovered 2 exits: *Fac x2) -7/Factory -7/Garrison -7/Factory -7/Garrison -7/Factory -6/Factory -6/Garrison -6/Factory -6/Lower Caves History --------- Turn | Location | Event 1 | -11/Scrapyard | Discovered new exit (range 0) 1 | -11/Scrapyard | Entered Materials 37 | -10/Materials | Discovered new exit (range 9) 43 | -10/Materials | Entered another Materials area 43 | -9/Materials | Evolved 2 slots: Power x1, Propulsion x1 119 | -9/Materials | Identified exit to Materials 137 | -9/Materials | Entered another Materials area 137 | -8/Materials | Evolved 2 slots: Propulsion x1, Utility x1 152 | -8/Materials | Identified exit to Garrison 152 | -8/Materials | Entered Garrison 188 | -8/Garrison | Triggered checkpoint 188 | -8/Garrison | Triggered checkpoint 212 | -8/Garrison | Discovered new exit (range 12) 217 | -8/Garrison | Attempted to access garrison exit controls, blocked by remote lockdown 230 | -8/Garrison | Core integrity fell below 50% 301 | -8/Garrison | Discovered new exit (range 8) 305 | -8/Garrison | Installed Relay Interface Framework 306 | -8/Garrison | Entered Factory 306 | -7/Factory | Evolved 2 slots: Propulsion x1, Utility x1 375 | -7/Factory | Identified exit to Garrison 375 | -7/Factory | Entered Garrison 393 | -7/Garrison | Discovered new exit (range 12) 396 | -7/Garrison | Entered Factory 431 | -7/Factory | Identified exit to Garrison 431 | -7/Factory | Entered Garrison 436 | -7/Garrison | Triggered checkpoint 521 | -7/Garrison | Discovered new exit (range 15) 527 | -7/Garrison | Expanded RIF knowledge: Structural Interface 528 | -7/Garrison | Entered Factory 536 | -7/Factory | Lost 3 parts (3n) 540 | -7/Factory | Build established: Scavenger-Sprinter 656 | -7/Factory | Discovered new exit (range 6) 659 | -7/Factory | Entered another Factory area 659 | -6/Factory | Evolved 2 slots: Power x1, Propulsion x1 713 | -6/Factory | Lost 8 parts (1p5n2w) 747 | -6/Factory | Identified exit to Garrison 747 | -6/Factory | Entered Garrison 773 | -6/Garrison | Spotted B-75 Beast 778 | -6/Garrison | Triggered checkpoint 778 | -6/Garrison | Triggered checkpoint 780 | -6/Garrison | Core integrity fell below 50% 796 | -6/Garrison | Discovered new exit (range 14) 802 | -6/Garrison | Entered Factory 822 | -6/Factory | Discovered new exit (range 5) 825 | -6/Factory | Entered Lower Caves 825 | -6/Lower Caves | Self-destructed Last Messages --------------- 00778_ Beams of light sweep through the air. An alarm sounds. 00778_ RIF reveals location of phase wall. 00781_ Penetrated by Slug. 00781_ Slug penetrates B-75 Beast. 00783_ RIF reveals location of phase wall. Garrison Door opened remotely. 00791_ RIF reveals location of phase wall. 00796_ EXIT=FOUND 00802_ Attempting to access garrison exit controls... RIF authorized. LOCATION=UNKNOWN GOAL=ESCAPE 00818_ O-16 Technician: "IFF HANDSHAKE FAILED. SECURING TERMINAL." 00818_ O-16 Technician uses terminal to summon reinforcements. 00818_ ALERT: Hostiles spotted, dispatching reinforcements to Terminal F014. 00818_ O-16 Technician locks terminal. 00822_ EXIT=FOUND LOCATION=UNKNOWN GOAL=ESCAPE Map ----- +----------------------------------------------------+ | ?????????????????????????????????????????????????? | | ?????????????????????????????????????????????????? | | ?????????????????????????????????????????????????? | | ?????????????????????????????????????????????????? | | ?????????????????????????????????????????????????? | | ?????????????????????????????????????????????????? | | ?????????????????????????????????????????????????? | | ?????????????????????????????????????????????????? | | ?????????????????????????????????????????????????? | | ?????????????????????????????????????????????????? | | ?????????????????????????????????????????????????? | | ?????????????????????????????????????????????????? | | ?????????????????????????????????????????????????? | | ?????????????????????????????????????????????????? | | ????????????????????????????????#????????????????? | | ??????????????????????????????? #????????????????? | | ??????????????????????????????? #????????????????? | | ?????????????????????????????? #????????????????? | | ?????????????????????????????# ?????????????????? | | ????????????????????????????? ?#????????????????? | | ??????????????????????#????? ? ?????????????????? | | ?????????????????????## ???# # ??????????????????? | | ?????????????????????# ??? ? #????????????????? | | ?????????????????????# ? # ##???????????????? | | ??????????????????????# # #???????????????? | | ???????????????????????# @ #??????????? | | ???????????????????????# # #??????????? | | ???????????????????????# ## #???????????????? | | ???????????????????????## ###??? #???????????????? | | ????????????????????????# ??????????????????????? | | ????????????????????????###??????????????????????? | | ?????????????????????????????????????????????????? | | ?????????????????????????????????????????????????? | | ?????????????????????????????????????????????????? | | ?????????????????????????????????????????????????? | | ?????????????????????????????????????????????????? | | ?????????????????????????????????????????????????? | | ?????????????????????????????????????????????????? | | ?????????????????????????????????????????????????? | | ?????????????????????????????????????????????????? | | ?????????????????????????????????????????????????? | | ?????????????????????????????????????????????????? | | ?????????????????????????????????????????????????? | | ?????????????????????????????????????????????????? | | ?????????????????????????????????????????????????? | | ?????????????????????????????????????????????????? | | ?????????????????????????????????????????????????? | | ?????????????????????????????????????????????????? | | ?????????????????????????????????????????????????? | | ?????????????????????????????????????????????????? | +----------------------------------------------------+ Best States ------------- Heat Dissipation 37 Energy Generation 21 Energy Capacity 315 Matter Stores 300 Matter Capacity 300 Sight Range 16 Terrain Scan Density 110 Propulsion Shielding 66 Evasion (%) 64 Offensive Hacking 10 Item Schematics ----------------- None Robot Schematics ------------------ None Fabricated ------------ Nothing Alien Tech Used ----------------- None Achievements -------------- None Challenges ------------ None Game ------ Seed SegregatorCannonArray Manual? 0 Play Time 00:11:56 Cumulative 830.8 hours Start 2020.07.31 @ 22:14:34 End 2020.07.31 @ 22:26:28 Sessions 1 Manual Loads 0 Difficulty Rogue Special Mode None Game No. 252 Rogue 252 Adventurer 0 Explorer 0 Win Type - Total 45 Types 33/1/3/3/3/1/1 Lore% 97 Gallery% 99 Achievement% 95 Wizard Run 0 Options --------- ASCII 0 Keyboard 1 Movement Numpad Keybinds 0 Fullscreen 1 Font 18/SmallcapsGlow Map View 76x50 Tactical HUD 1 Map Filters NONE Filters NONE Steam 1 RUN: 0907228f-c479-4864-9331-e9a484976abe